[Event "Astana Open GM-norm 2018"]
[Site "Astana"]
[Date "2018.06.22"]
[Round "6"]
[White "Arystanbek, Urazayev"]
[Black "Zhanibek, Amanov"]
[Result "0-1"]
[ECO "C72"]
[WhiteElo "2303"]
[BlackElo "2340"]
[Annotator "NA"]
[PlyCount "86"]
[EventDate "2018.06.17"]
[EventType "tourn"]
[EventCountry "KAZ"]
[SourceTitle "playchess.com"]
[Source "ChessBase"]
[SourceQuality "1"]
[TimeControl "5400+30"]

1. e4 {[%emt 0:00:14] Schussler,H} e5 {[%emt 0:01:17]} 2. Nf3 {[%emt 0:00:10]} Nc6 {[%emt 0:00:07]} 3. Bb5 {[%emt 0:00:06]} a6 {[%emt 0:00:15]} 4. Ba4 {[%emt 0:00:09]} d6 {[%emt 0:00:07]} 5. O-O {[%emt 0:01:14]} Bg4 {[%emt 0:00:30]} 6. h3 {[%emt 0:06:17]} h5 {[%emt 0:00:37]} 7. c3 {[%emt 0:04:42]} Qf6 {[%emt 0:01:21]} 8. d3 {[%emt 0:02:11] C72: Ruy Lopez: Deferred Steinitz: 5 0-0} Bxf3 {[%emt 0:01:22]} 9. Qxf3 {[%emt 0:00:21]} Qxf3 {[%emt 0:00:08]} 10. gxf3 {[%emt 0:00:09]} Nge7 {[%emt 0:00:13]} 11. f4 {[%emt 0:06:00]} O-O-O {[%emt 0:07:19]} (11... exf4 12. Bxf4 O-O-O 13. Nd2 g5 14. Be3 Bh6 15. f4 g4 16. hxg4 hxg4 {½-½ (37) Svidler,P (2746)-Grischuk,A (2716) Baku 2008}) 12. Bb3 {[%emt 0:09:54]} f6 $146 {[%emt 0:12:24]} ({Predecessor:} 12... exf4 13. Bxf4 d5 14. Nd2 g5 15. Be3 Bh6 {1-0 (34) Adams,M (2630)-Piket,J (2245) Wijk aan Zee 1993 CBM 034 [Schussler,H]}) 13. Kh1 {[%emt 0:04:41]} g6 {[%emt 0:04:04]} 14. Na3 {[%emt 0:11:07]} Bh6 {[%emt 0:01:51]} 15. f5 {[%emt 0:04:44]} Bxc1 {[%emt 0:04:29]} 16. Raxc1 {[%emt 0:00:19]} d5 {[%emt 0:16:36]} 17. exd5 {[%emt 0:09:24]} Na5 {[%emt 0:01:45]} 18. Bc2 {[%emt 0:06:04]} Rxd5 {[%emt 0:00:42]} 19. fxg6 {[%emt 0:00:54]} Nxg6 {[%emt 0:00:08]} 20. d4 {[%emt 0:01:35]} Nf4 {[%emt 0:00:05]} 21. Be4 {[%emt 0:02:57]} Rdd8 {[%emt 0:00:03]} 22. dxe5 {[%emt 0:01:15]} fxe5 {[%emt 0:00:45]} 23. b4 {[%emt 0:03:16]} Nc6 {[%emt 0:00:07]} 24. Nc4 {[%emt 0:02:05]} b5 {[%emt 0:04:49]} 25. Ne3 {[%emt 0:03:50]} Ne7 {[%emt 0:00:27]} 26. a4 {[%emt 0:05:33]} bxa4 $11 {[%emt 0:24:28]} 27. Ra1 {[%emt 0:06:17]} Nxh3 {[%emt 0:06:37]} 28. Rxa4 {[%emt 0:01:32]} Rhf8 {[%emt 0:01:32]} 29. Kg2 {[%emt 0:04:53]} Ng5 {[%emt 0:02:47]} 30. b5 {[%emt 0:01:47]} Rf4 {[%emt 0:01:48]} 31. Bc2 {[%emt 0:01:23]} Rxa4 {[%emt 0:01:01]} 32. Bxa4 {[%emt 0:00:04]} axb5 {[%emt 0:00:39]} 33. Bxb5 {[%emt 0:00:06]} c6 {[%emt 0:02:53]} 34. Be2 {[%emt 0:00:06]} Ng6 {[%emt 0:00:17]} 35. Kh2 {[%emt 0:00:43]} Nf4 {[%emt 0:00:13]} 36. Ba6+ {[%emt 0:00:43]} Kc7 {[%emt 0:00:01]} 37. Rb1 {[%emt 0:00:48]} Rg8 {[%emt 0:01:49]} 38. Nf5 {[%emt 0:00:34]} Nf3+ {[%emt 0:00:32]} 39. Kh1 {[%emt 0:00:04]} Rg2 {[%emt 0:01:53]} 40. Rb7+ {[%emt 0:01:26]} Kd8 {[%emt 0:00:00]} 41. Rb8+ {[%emt 0:00:43]} Kd7 {[%emt 0:00:30]} 42. Bc8+ {[%emt 0:00:24]} Kc7 {[%emt 0:00:20]} 43. Rb7+ {[%emt 0:00:13]} Kd8 {[%emt 0:00:33]} 0-1

[Event "Astana Open GM-norm 2018"]
[Site "Astana"]
[Date "2018.06.24"]
[Round "8"]
[White "Zhanibek, Amanov"]
[Black "Gulmira, Dauletova"]
[Result "1-0"]
[ECO "B47"]
[WhiteElo "2340"]
[BlackElo "2273"]
[Annotator "NA"]
[PlyCount "118"]
[EventDate "2018.06.17"]
[EventType "tourn"]
[EventCountry "KAZ"]
[SourceTitle "playchess.com"]
[Source "ChessBase"]
[SourceQuality "1"]
[TimeControl "5400+30"]

1. e4 {[%emt 0:01:06]} c5 {[%emt 0:02:32]} 2. Nf3 {[%emt 0:00:10]} e6 {[%emt 0:00:10]} 3. g3 {[%emt 0:01:54]} a6 {[%emt 0:02:23]} 4. Bg2 {[%emt 0:00:14]} Nc6 {[%emt 0:02:19]} 5. O-O {[%emt 0:02:42]} Qc7 {[%emt 0:01:51]} 6. Nc3 {[%emt 0:03:25]} Nf6 {[%emt 0:13:23]} 7. d4 {[%emt 0:05:20]} cxd4 {[%emt 0:00:18]} 8. Nxd4 {[%emt 0:00:01]} h5 {[%emt 0:00:24]} 9. h3 {[%emt 0:00:05]} Nxd4 {[%emt 0:02:52]} 10. Qxd4 {[%emt 0:00:02]} Bc5 {[%emt 0:00:28]} 11. Bf4 {[%emt 0:01:38]} d6 {[%emt 0:00:28]} 12. Qd2 {[%emt 0:00:16]} e5 {[%emt 0:01:12]} 13. Bg5 {[%emt 0:08:14]} Be6 {[%emt 0:00:59]} 14. Bxf6 {[%emt 0:01:50]} gxf6 {[%emt 0:00:02]} 15. Nd5 {[%emt 0:00:21]} Bxd5 {[%emt 0:07:23]} 16. Qxd5 {[%emt 0:00:11]} Qc6 {[%emt 0:05:24]} 17. Qd3 {[%emt 0:04:53]} a5 {[%emt 0:02:15]} 18. a4 {[%emt 0:09:45]} Qb6 {[%emt 0:11:43]} 19. c3 {[%emt 0:07:28]} Rg8 {[%emt 0:01:32]} 20. Qf3 {[%emt 0:04:12]} Ke7 {[%emt 0:03:52]} 21. Kh2 {[%emt 0:03:15]} Ra7 {[%emt 0:06:24]} 22. Qe2 {[%emt 0:00:50]} Rh8 {[%emt 0:06:28]} 23. h4 {[%emt 0:01:00]} Qa6 {[%emt 0:00:22]} 24. Qd2 {[%emt 0:03:35]} Qc4 {[%emt 0:04:04]} 25. Qc2 {[%emt 0:06:14]} Bb6 {[%emt 0:02:44]} 26. Rfd1 {[%emt 0:00:41]} Qc5 {[%emt 0:02:58]} 27. Rd2 {[%emt 0:03:21]} Raa8 {[%emt 0:00:04]} 28. Rf1 {[%emt 0:06:20]} Rad8 {[%emt 0:02:08]} 29. Rd5 {[%emt 0:00:58]} Qc6 {[%emt 0:00:05]} 30. Rb5 {[%emt 0:03:25]} Bc7 {[%emt 0:02:54]} 31. Qe2 {[%emt 0:02:06]} Rh7 {[%emt 0:00:40]} 32. Bf3 {[%emt 0:01:46]} Rdh8 {[%emt 0:00:02]} 33. Rd1 {[%emt 0:00:28]} Bb6 {[%emt 0:00:53]} 34. Kg2 {[%emt 0:02:08]} Qc7 {[%emt 0:00:32]} 35. Qc2 {[%emt 0:01:41]} Rb8 {[%emt 0:00:18]} 36. Qb3 {[%emt 0:01:01]} Bc5 {[%emt 0:00:23]} 37. Qc4 {[%emt 0:04:37]} Rc8 {[%emt 0:01:38]} 38. Qd5 {[%emt 0:03:06]} b6 {[%emt 0:01:47]} 39. Qd3 {[%emt 0:01:34]} Qd7 {[%emt 0:01:30]} 40. Qe2 {[%emt 0:01:11]} Qe6 {[%emt 0:01:54]} 41. Rd5 {[%emt 0:02:43]} Qd7 {[%emt 0:04:07]} 42. Qd3 {[%emt 0:00:23]} Qc6 {[%emt 0:00:36]} 43. b4 {[%emt 0:00:39]} axb4 {[%emt 0:00:15]} 44. cxb4 {[%emt 0:00:01]} Bd4 {[%emt 0:00:22]} 45. Rxd4 {[%emt 0:00:18]} exd4 {[%emt 0:00:29]} 46. e5 {[%emt 0:00:17]} Qc2 {[%emt 0:00:56]} 47. exd6+ {[%emt 0:00:56]} Kd7 {[%emt 0:00:28]} 48. Qxc2 {[%emt 0:00:33]} Rxc2 {[%emt 0:00:03]} 49. Be4 {[%emt 0:00:05]} Rc3 {[%emt 0:04:59]} 50. Bxh7 {[%emt 0:00:11]} Kxd6 {[%emt 0:00:02]} 51. Rxb6+ {[%emt 0:00:28]} Kd5 {[%emt 0:01:10]} 52. Rxf6 {[%emt 0:00:29]} Ra3 {[%emt 0:00:25]} 53. a5 {[%emt 0:00:45]} Kc4 {[%emt 0:00:10]} 54. Rb6 {[%emt 0:00:19]} d3 {[%emt 0:01:16]} 55. Bxd3+ {[%emt 0:00:10]} Rxd3 {[%emt 0:00:12]} 56. a6 {[%emt 0:00:08]} Rd8 {[%emt 0:01:21]} 57. a7 {[%emt 0:00:10]} Ra8 {[%emt 0:00:04]} 58. Rb7 {[%emt 0:00:04]} f5 {[%emt 0:00:04]} 59. b5 {[%emt 0:00:18]} Kd5 {[%emt 0:00:15]} 1-0